lending/lending_fUSD_20250122
["ID","MTS","AMOUNT","RATE_DAILY","PERIOD"]
[350020862,1737571843376,-500.0,0.00020272,2]
[350020863,1737571843385,-500.0,0.00020272,2]
[350020864,1737571843396,-500.0,0.00020272,2]
[350020865,1737571843405,-500.0,0.00020272,2]
[350020866,1737571843415,-557.96,0.00020272,2]
[350020867,1737571843424,-500.0,0.00020272,2]
[350020868,1737571843433,-500.0,0.00020272,2]
[350020869,1737571843442,-500.0,0.00020272,2]
[350020870,1737571843451,-500.0,0.00020272,2]
[350020871,1737571843460,-500.0,0.00020272,2]
[350020872,1737571843469,-500.0,0.00020272,2]
[350020873,1737571843478,-500.0,0.00020272,2]
[350020874,1737571843488,-500.0,0.00020272,2]
[350020875,1737571843498,-737.19,0.00020272,2]
[350020876,1737571843507,-1138.94,0.00020272,2]
[350020877,1737571843516,-865.26,0.00020272,2]
[350020878,1737571843525,-500.0,0.00020272,2]
[350020879,1737571843534,-500.0,0.00020272,2]
[350020880,1737571843543,-500.0,0.00020272,2]
[350020881,1737571843553,-706.95,0.00020272,2]
[350020882,1737571843562,-589.87,0.00020272,2]
[350020883,1737571843571,-797.11,0.00020272,2]
[350020884,1737571843580,-616.96,0.00020272,2]
[350020885,1737571843589,-615.5,0.00020272,2]
[350020886,1737571843599,-500.0,0.00020272,2]
[350020887,1737571843608,-1074.44,0.00020272,2]
[350020888,1737571843617,-500.0,0.00020272,2]
[350020889,1737571843626,-280.00307714,0.00020272,2]
[350020890,1737571843635,-1159.26,0.00020272,2]
[350020891,1737571843644,-1301.83,0.00020272,2]
[350020892,1737571843654,-556.35,0.00020272,2]
[350020893,1737571843663,-500.0,0.00020272,2]
[350020894,1737571843672,-1322.01,0.00020272,2]
[350020895,1737571843681,-500.0,0.00020272,2]
[350020896,1737571843691,-500.0,0.00020272,2]
[350020897,1737571843700,-500.0,0.00020272,2]
[350020898,1737571843709,-500.0,0.00020272,2]
[350020899,1737571843718,-500.0,0.00020272,2]
[350020900,1737571843727,-500.0,0.00020272,2]
[350020901,1737571843736,-525.7,0.00020272,2]
[350020902,1737571843745,-536.14,0.00020272,2]
[350020903,1737571843755,-500.0,0.00020272,2]
[350020904,1737571843764,-1182.89,0.00020272,2]
[350020905,1737571843773,-500.0,0.00020272,2]
[350020906,1737571843782,-500.0,0.00020272,2]
[350020907,1737571843791,-500.0,0.00020272,2]
[350020908,1737571843800,-500.0,0.00020272,2]
[350020909,1737571843809,-500.0,0.00020272,2]
[350020910,1737571843819,-500.0,0.00020272,2]
[350020911,1737571843831,-652.61,0.00020272,2]
[350020912,1737571843843,-500.0,0.00020272,2]
[350020913,1737571843856,-500.0,0.00020272,2]
[350020914,1737571843869,-500.0,0.00020272,2]
[350020915,1737571843880,-206.1721365,0.00020272,2]
[350020916,1737571843890,-500.0,0.00020272,2]
[350020917,1737571843900,-500.0,0.00020272,2]
[350020918,1737571843911,-500.0,0.00020272,2]
[350020919,1737571843924,-500.0,0.00020272,2]
[350020920,1737571843937,-809.54,0.00020272,2]
[350020921,1737571843947,-500.0,0.00020272,2]
[350020922,1737571843961,-500.0,0.00020272,2]
[350020923,1737571843973,-500.0,0.00020272,2]
[350020924,1737571843985,-500.0,0.00020272,2]
[350020925,1737571843996,-500.0,0.00020272,2]
[350020926,1737571844007,-546.56,0.00020272,2]
[350020927,1737571844018,-500.0,0.00020272,2]
[350020928,1737571844029,-500.0,0.00020272,2]
[350020929,1737571844039,-500.0,0.00020272,2]
[350020930,1737571844050,-500.0,0.00020272,2]
[350020931,1737571844062,-542.92,0.00020272,2]
[350020932,1737571844075,-730.71,0.00020272,2]
[350020933,1737571844086,-500.0,0.00020272,2]
[350020934,1737571844098,-500.0,0.00020272,2]
[350020935,1737571844110,-1145.41,0.00020272,2]
[350020936,1737571844121,-500.0,0.00020272,2]
[350020937,1737571844134,-2365.89,0.00020272,2]
[350020938,1737571844145,-620.9,0.00020272,2]
[350020939,1737571844157,-500.0,0.00020272,2]
[350020940,1737571844169,-151.0,0.00020272,2]
[350020941,1737571844181,-151.0,0.00020272,2]
[350020942,1737571844193,-151.0,0.00020272,2]
[350020943,1737571844204,-500.0,0.00020272,2]
[350020944,1737571844215,-151.0,0.00020272,2]
[350020945,1737571844228,-500.0,0.00020273,2]
[350020946,1737571844239,-500.0,0.00020273,2]
[350020947,1737571844251,-500.0,0.00020273,2]
[350020948,1737571844262,-500.0,0.00020273,2]
[350020949,1737571844273,-500.0,0.00020273,2]
[350020950,1737571844285,-500.0,0.00020273,2]
[350020951,1737571844296,-538.50533069,0.00020273,2]
[350020952,1737571844308,-500.0,0.00020273,2]
[350020953,1737571844326,-449.05635063,0.00020273,2]
[350020954,1737571844338,-500.0,0.00020273,2]
[350020955,1737571844351,-500.0,0.00020273,2]
[350020956,1737571844361,-500.0,0.00020273,2]
[350020957,1737571844372,-500.0,0.00020273,2]
[350020958,1737571844384,-500.0,0.00020273,2]
[350020959,1737571844394,-500.0,0.00020273,2]
[350020960,1737571844404,-500.0,0.00020273,2]
[350020961,1737571844414,-500.0,0.00020273,2]
[350020962,1737571844425,-500.0,0.00020273,2]
[350020963,1737571844435,-500.0,0.00020273,2]
[350020964,1737571844448,-355.13230218,0.00020273,2]
[350020965,1737571844461,-500.0,0.00020273,2]
[350020966,1737571844472,-151.0,0.00020273,2]
[350020967,1737571844483,-151.0,0.00020273,2]
[350020968,1737571844492,-1915.93083905,0.00020314,2]
[350020969,1737571844502,-1915.93083905,0.00020383,2]
[350020970,1737571844512,-666.53,0.00020445,2]
[350020971,1737571844522,-500.0,0.00020445,2]
[350020972,1737571844533,-866.23,0.00020445,2]
[350020973,1737571844544,-500.0,0.00020445,2]
[350020974,1737571844556,-739.87,0.00020445,2]
[350020975,1737571844570,-500.0,0.00020445,2]
[350020976,1737571844580,-661.3,0.00020445,2]
[350020977,1737571844590,-500.0,0.00020445,2]
[350020978,1737571844601,-941.66,0.00020445,2]
[350020979,1737571844611,-521.15,0.00020445,2]
[350020980,1737571844621,-500.0,0.00020445,2]
[350020981,1737571844632,-671.01,0.00020445,2]
[350020982,1737571844643,-500.0,0.00020445,2]
[350020983,1737571844653,-500.0,0.00020445,2]
[350020984,1737571844663,-500.0,0.00020445,2]
[350020985,1737571844674,-500.0,0.00020445,2]
[350020986,1737571844685,-1162.08,0.00020445,2]
[350020987,1737571844695,-500.0,0.00020445,2]
[350020988,1737571844706,-825.23,0.00020445,2]
[350020989,1737571844717,-1422.23,0.00020445,2]
[350020990,1737571844727,-608.06,0.00020445,2]
[350020991,1737571844739,-500.0,0.00020445,2]
[350020992,1737571844750,-1049.97,0.00020445,2]
[350020993,1737571844760,-500.0,0.00020445,2]
[350020994,1737571844771,-1915.93083905,0.00020452,2]
[350020995,1737571844782,-8717.36091199,0.00020499,2]
[350020996,1737571844793,-4954.19479825,0.00020499,2]
[350020997,1737571844803,-1915.93083905,0.00020521,2]
[350020998,1737571844815,-500.0,0.00020543,2]
[350020999,1737571844826,-676.96,0.00020545,2]
[350021000,1737571844836,-875.26,0.00020545,2]
[350021001,1737571844846,-500.0,0.00020545,2]
[350021002,1737571844857,-609.78,0.00020545,2]
[350021003,1737571844867,-536.46,0.00020545,2]
[350021004,1737571844878,-526.21,0.00020545,2]
[350021005,1737571844888,-500.0,0.00020545,2]
[350021006,1737571844899,-856.03,0.00020545,2]
[350021007,1737571844909,-1061.43,0.00020545,2]
[350021008,1737571844920,-634.6525661,0.00020546,2]
[350021009,1737571844930,-500.0,0.00020546,2]
[350021010,1737571844941,-500.0,0.00020546,2]
[350021011,1737571844952,-500.0,0.00020546,2]
[350021012,1737571844965,-500.0,0.00020546,2]
[350021013,1737571844976,-500.0,0.00020546,2]
[350021014,1737571844986,-500.0,0.00020546,2]
[350021015,1737571844996,-500.0,0.00020546,2]
[350021016,1737571845007,-507.80984,0.00020546,2]
[350021017,1737571845017,-500.0,0.00020546,2]
[350021018,1737571845028,-500.0,0.00020546,2]
[350021019,1737571845039,-500.0,0.00020546,2]
[350021020,1737571845050,-500.0,0.00020546,2]
[350021021,1737571845065,-500.0,0.00020546,2]
[350021022,1737571845076,-500.0,0.00020546,2]
[350021023,1737571845086,-500.0,0.00020546,2]
[350021024,1737571845097,-500.0,0.00020546,2]
[350021025,1737571845107,-500.0,0.00020546,2]
[350021026,1737571845117,-500.0,0.00020546,2]
[350021027,1737571845128,-500.0,0.00020546,2]
[350021028,1737571845138,-500.0,0.00020546,2]
[350021029,1737571845149,-500.0,0.00020546,2]
[350021030,1737571845160,-500.0,0.00020546,2]
[350021031,1737571845171,-500.0,0.00020546,2]
[350021032,1737571845181,-500.0,0.00020546,2]
[350021033,1737571845192,-557.96,0.00020546,2]
[350021034,1737571845202,-500.0,0.00020546,2]
[350021035,1737571845213,-500.0,0.00020546,2]
[350021036,1737571845223,-500.0,0.00020546,2]
[350021037,1737571845233,-500.0,0.00020546,2]
[350021038,1737571845243,-500.0,0.00020546,2]
[350021039,1737571845255,-178.63731674,0.00020546,2]
[350021040,1737571845266,-500.0,0.00020546,2]
[350021041,1737571845276,-500.0,0.00020546,2]
[350021042,1737571845287,-737.19,0.00020546,2]
[350021043,1737571845297,-1138.94,0.00020546,2]
[350021044,1737571845308,-865.26,0.00020546,2]
[350021045,1737571845321,-500.0,0.00020546,2]
[350021046,1737571845332,-500.0,0.00020546,2]
[350021047,1737571845342,-500.0,0.00020546,2]
[350021048,1737571845353,-706.95,0.00020546,2]
[350021049,1737571845363,-589.87,0.00020546,2]
[350021050,1737571845374,-797.11,0.00020546,2]
[350021051,1737571845384,-616.96,0.00020546,2]
[350021052,1737571845395,-615.5,0.00020546,2]
[350021053,1737571845405,-500.0,0.00020546,2]
[350021054,1737571845416,-1074.44,0.00020546,2]
[350021055,1737571845426,-500.0,0.00020546,2]
[350021056,1737571845437,-1159.26,0.00020546,2]
[350021057,1737571845448,-1301.83,0.00020546,2]
[350021058,1737571845459,-556.35,0.00020546,2]
[350021059,1737571845470,-349.97655895,0.00020546,2]
[350021060,1737571845480,-1322.01,0.00020546,2]
[350021061,1737571845491,-394.39349595,0.00020546,2]
[350021062,1737571845501,-500.0,0.00020546,2]
[350021063,1737571845512,-500.0,0.00020546,2]
[350021064,1737571845523,-500.0,0.00020546,2]
[350021065,1737571845533,-500.0,0.00020546,2]
[350021066,1737571845545,-525.7,0.00020546,2]
[350021067,1737571845555,-536.14,0.00020546,2]
[350021068,1737571845568,-500.0,0.00020546,2]
[350021069,1737571845578,-1182.89,0.00020546,2]
[350021070,1737571845589,-500.0,0.00020546,2]
[350021071,1737571845600,-483.00222027,0.00020546,2]
[350021072,1737571845610,-500.0,0.00020546,2]
[350021073,1737571845619,-652.61,0.00020546,2]
[350021074,1737571845629,-500.0,0.00020546,2]
[350021075,1737571845638,-500.0,0.00020546,2]
[350021076,1737571845648,-500.0,0.00020546,2]
[350021077,1737571845657,-500.0,0.00020546,2]
[350021078,1737571845666,-809.54,0.00020546,2]
[350021079,1737571845675,-500.0,0.00020546,2]
[350021080,1737571845684,-500.0,0.00020546,2]
[350021081,1737571845694,-500.0,0.00020546,2]
[350021082,1737571845706,-546.56,0.00020546,2]
[350021083,1737571845717,-500.0,0.00020546,2]
[350021084,1737571845726,-500.0,0.00020546,2]
[350021085,1737571845736,-500.0,0.00020546,2]
[350021086,1737571845745,-542.92,0.00020546,2]
[350021088,1737571845755,-730.71,0.00020546,2]
[350021090,1737571845764,-500.0,0.00020546,2]
[350021092,1737571845774,-1145.41,0.00020546,2]
[350021093,1737571845783,-500.0,0.00020546,2]
[350021094,1737571845793,-2365.89,0.00020546,2]
[350021095,1737571845802,-620.9,0.00020546,2]
[350021096,1737571845811,-500.0,0.00020546,2]
[350021097,1737571845822,-500.0,0.00020546,2]
[350021098,1737571845831,-500.0,0.00020547,2]
[350021099,1737571845840,-500.0,0.00020547,2]
[350021101,1737571846084,-500.0,0.00020547,2]
[350021102,1737571846105,-444.41984955,0.00020547,2]
[350021103,1737571846120,-500.0,0.00020547,2]
[350021104,1737571846130,-500.0,0.00020547,2]
[350021105,1737571846140,-500.0,0.00020547,2]
[350021106,1737571846150,-500.0,0.00020547,2]
[350021107,1737571846159,-500.0,0.00020547,2]
[350021108,1737571846168,-500.0,0.00020547,2]
[350021109,1737571846178,-428.91920135,0.00020547,2]
[350021110,1737571846187,-500.0,0.00020547,2]
[350021111,1737571846196,-500.0,0.00020547,2]
[350021112,1737571846205,-500.0,0.00020547,2]
[350021113,1737571846215,-500.0,0.00020547,2]
[350021114,1737571846224,-1915.93083905,0.0002059,2]
[350021115,1737571846233,-1915.93083905,0.00020659,2]
[350021116,1737571846243,-154.41,0.00020708,2]
[350021117,1737571846252,-310.61,0.00020714,2]
[350021118,1737571846261,-36792.97389807,0.00020719,2]
[350021119,1737571846276,-12674.517128,0.00020719,2]
[350021120,1737571846485,-257.8,0.00019498,2]
[350021121,1737571846495,-500.0,0.00019897,2]
[350021122,1737571846504,-571.86489479,0.00019897,2]
[350021123,1737571846513,-16.93873709,0.00019897,2]
[350021124,1737571846525,-483.06126291,0.00019897,2]
[350021125,1737571846534,-145.17873109,0.00019998,2]
[350021126,1737571846553,-419.40138,0.00019998,2]
[350021127,1737571846565,-132.11988891,0.00019998,2]
[350021128,1737571846575,-554.26993221,0.00019998,2]
[350021129,1737571846584,-148.73777362,0.00020171,2]
[350021130,1737571846596,-351.26222638,0.00020171,2]
[350021131,1737571846605,-500.0,0.00020171,2]
[350021132,1737571846615,-696.7,0.00020272,2]
[350021133,1737571846624,-500.0,0.00020445,2]
[350021134,1737571846634,-500.0,0.00020445,2]
[350021135,1737571846643,-156.63577362,0.00020546,2]
[350021136,1737571846658,-540.06422638,0.00020546,2]
[350021137,1737571846668,-72413.1357884,0.00020719,2]
[350021138,1737571846677,-666.53,0.00020719,2]
[350021139,1737571846686,-500.0,0.00020719,2]
[350021140,1737571846694,-866.23,0.00020719,2]
[350021141,1737571846704,-500.0,0.00020719,2]
[350021142,1737571846713,-739.87,0.00020719,2]
[350021143,1737571846722,-500.0,0.00020719,2]
[350021144,1737571846731,-661.3,0.00020719,2]
[350021145,1737571846740,-500.0,0.00020719,2]
[350021146,1737571846750,-941.66,0.00020719,2]
[350021147,1737571846759,-521.15,0.00020719,2]
[350021148,1737571846768,-500.0,0.00020719,2]
[350021149,1737571846777,-671.01,0.00020719,2]
[350021150,1737571846786,-500.0,0.00020719,2]
[350021151,1737571846796,-500.0,0.00020719,2]
[350021152,1737571846805,-500.0,0.00020719,2]
[350021153,1737571846817,-500.0,0.00020719,2]
[350021154,1737571846826,-1162.08,0.00020719,2]
[350021155,1737571846835,-500.0,0.00020719,2]
[350021156,1737571846844,-825.23,0.00020719,2]
[350021157,1737571846854,-1422.23,0.00020719,2]
[350021158,1737571846863,-608.06,0.00020719,2]
[350021159,1737571846871,-500.0,0.00020719,2]
[350021160,1737571846881,-1049.97,0.00020719,2]
[350021161,1737571846890,-500.0,0.00020719,2]
[350021162,1737571846899,-500.0,0.00020719,2]
[350021163,1737571846908,-265.1542673,0.00020719,2]
[350021164,1737571846917,-1915.93083905,0.00020728,2]
[350021165,1737571846926,-8717.36091199,0.00020733,2]
[350021166,1737571846935,-4954.19479825,0.00020733,2]
[350021167,1737571846944,-500.0,0.0002074,2]
[350021168,1737571846953,-3675.12692503,0.00020785,2]
[350021169,1737571846962,-2941.41589844,0.00020787,2]
[350021170,1737571846971,-200.0,0.00020788,2]
[350021171,1737571846980,-298.923958,0.0002079,2]
[350021172,1737571846989,-880.16185793,0.0002079,2]
[350021173,1737571846998,-3697.76181898,0.00020791,2]
[350021174,1737571847007,-3697.76181898,0.00020792,2]
[350021175,1737571847016,-616.54035252,0.00020792,2]
[350021176,1737571847025,-409.96275297,0.00020792,2]
[350021177,1737571847034,-200.0,0.00020795,2]
[350021178,1737571847043,-2941.41589844,0.00020796,2]
[350021179,1737571847053,-1915.93083905,0.00020797,2]
[350021180,1737571847063,-409.96275297,0.00020797,2]
[350021181,1737571847074,-2941.41589844,0.00020799,2]
[350021182,1737571847083,-3697.76181898,0.00020799,2]
[350021183,1737571847093,-298.923958,0.00020804,2]
[350021184,1737571847102,-1821.04192883,0.0002081,2]
[350021185,1737571847113,-439.7347157,0.00020811,2]
[350021186,1737571847122,-7139.54736056,0.00020812,2]
[350021187,1737571847131,-200.0,0.00020814,2]
[350021188,1737571847141,-439.7347157,0.00020817,2]
[350021189,1737571847150,-2538.33696221,0.00020818,2]
[350021190,1737571847159,-676.96,0.00020819,2]
[350021191,1737571847169,-875.26,0.00020819,2]
[350021192,1737571847178,-500.0,0.00020819,2]
[350021193,1737571847187,-609.78,0.00020819,2]
[350021194,1737571847197,-536.46,0.00020819,2]
[350021195,1737571847206,-151.0,0.00020819,2]
[350021196,1737571847215,-526.21,0.00020819,2]
[350021197,1737571847224,-151.0,0.00020819,2]
[350021198,1737571847233,-152.984845,0.00020819,2]
[350021199,1737571847243,-500.0,0.00020819,2]
[350021200,1737571847251,-151.0,0.00020819,2]
[350021201,1737571847260,-856.03,0.00020819,2]
[350021202,1737571847270,-1061.43,0.00020819,2]
[350021203,1737571847279,-151.0,0.00020819,2]
[350021204,1737571847289,-151.0,0.00020819,2]
[350021205,1737571847298,-500.0,0.0002082,2]
[350021206,1737571847308,-500.0,0.0002082,2]
[350021207,1737571847317,-500.0,0.0002082,2]
[350021208,1737571847326,-500.0,0.0002082,2]
[350021209,1737571847335,-500.0,0.0002082,2]
[350021210,1737571847345,-500.0,0.0002082,2]
[350021211,1737571847354,-507.80984,0.0002082,2]
[350021212,1737571847364,-500.0,0.0002082,2]
[350021213,1737571847373,-500.0,0.0002082,2]
[350021214,1737571847383,-500.0,0.0002082,2]
[350021215,1737571847392,-500.0,0.0002082,2]
[350021216,1737571847401,-500.0,0.0002082,2]
[350021217,1737571847411,-500.0,0.0002082,2]
[350021218,1737571847420,-500.0,0.0002082,2]
[350021219,1737571847429,-500.0,0.0002082,2]
[350021220,1737571847438,-500.0,0.0002082,2]
[350021221,1737571847448,-500.0,0.0002082,2]
[350021222,1737571847458,-500.0,0.0002082,2]
[350021223,1737571847467,-500.0,0.0002082,2]
[350021224,1737571847477,-500.0,0.0002082,2]
[350021225,1737571847486,-500.0,0.0002082,2]
[350021226,1737571847496,-500.0,0.0002082,2]
[350021227,1737571847505,-500.0,0.0002082,2]
[350021228,1737571847515,-557.96,0.0002082,2]
[350021229,1737571847524,-500.0,0.0002082,2]
[350021230,1737571847533,-500.0,0.0002082,2]
[350021231,1737571847543,-500.0,0.0002082,2]
[350021232,1737571847552,-500.0,0.0002082,2]
[350021233,1737571847561,-500.0,0.0002082,2]
[350021234,1737571847571,-500.0,0.0002082,2]
[350021235,1737571847580,-500.0,0.0002082,2]
[350021236,1737571847589,-737.19,0.0002082,2]
[350021237,1737571847598,-1138.94,0.0002082,2]
[350021238,1737571847607,-865.26,0.0002082,2]
[350021239,1737571847616,-500.0,0.0002082,2]
[350021240,1737571847626,-500.0,0.0002082,2]
[350021241,1737571847635,-500.0,0.0002082,2]
[350021242,1737571847645,-706.95,0.0002082,2]
[350021243,1737571847655,-589.87,0.0002082,2]
[350021244,1737571847664,-797.11,0.0002082,2]
[350021245,1737571847675,-616.96,0.0002082,2]
[350021246,1737571847684,-615.5,0.0002082,2]
[350021247,1737571847693,-500.0,0.0002082,2]
[350021248,1737571847702,-1074.44,0.0002082,2]
[350021249,1737571847711,-500.0,0.0002082,2]
[350021250,1737571847720,-1159.26,0.0002082,2]
[350021251,1737571847731,-1301.83,0.0002082,2]
[350021252,1737571847740,-556.35,0.0002082,2]
[350021253,1737571847750,-1322.01,0.0002082,2]
[350021254,1737571847759,-500.0,0.0002082,2]
[350021255,1737571847769,-500.0,0.0002082,2]
[350021256,1737571847778,-500.0,0.0002082,2]
[350021257,1737571847787,-500.0,0.0002082,2]
[350021258,1737571847796,-525.7,0.0002082,2]
[350021259,1737571847805,-536.14,0.0002082,2]
[350021260,1737571847814,-262.90797953,0.0002082,2]
[350021261,1737571847824,-1182.89,0.0002082,2]
[350021262,1737571847833,-500.0,0.0002082,2]
[350021263,1737571847843,-500.0,0.0002082,2]
[350021264,1737571847853,-652.61,0.0002082,2]
[350021265,1737571847862,-500.0,0.0002082,2]
[350021266,1737571847877,-500.0,0.0002082,2]
[350021267,1737571847886,-500.0,0.0002082,2]
[350021268,1737571847896,-500.0,0.0002082,2]
[350021269,1737571847906,-809.54,0.0002082,2]
[350021270,1737571847916,-500.0,0.0002082,2]
[350021271,1737571847925,-500.0,0.0002082,2]
[350021272,1737571847935,-500.0,0.0002082,2]
[350021273,1737571847945,-151.0,0.0002082,2]
[350021274,1737571847954,-546.56,0.0002082,2]
[350021275,1737571847964,-500.0,0.0002082,2]
[350021276,1737571847975,-500.0,0.0002082,2]
[350021277,1737571847984,-500.0,0.0002082,2]
[350021278,1737571847993,-542.92,0.0002082,2]
[350021279,1737571848003,-730.71,0.0002082,2]
[350021280,1737571848012,-500.0,0.0002082,2]
[350021281,1737571848021,-1145.41,0.0002082,2]
[350021282,1737571848031,-500.0,0.0002082,2]
[350021283,1737571848041,-2365.89,0.0002082,2]
[350021284,1737571848051,-620.9,0.0002082,2]
[350021285,1737571848061,-500.0,0.0002082,2]
[350021286,1737571848075,-500.0,0.0002082,2]
[350021287,1737571848084,-696.7,0.0002082,2]
[350021288,1737571848094,-500.0,0.00020821,2]
[350021289,1737571848104,-500.0,0.00020821,2]
[350021290,1737571848113,-522.49707929,0.00020821,2]
[350021291,1737571848122,-154.642063,0.00020821,2]
[350021292,1737571848132,-592.51700184,0.00020821,2]
[350021293,1737571848142,-500.0,0.00020821,2]
[350021294,1737571848151,-500.0,0.00020821,2]
[350021295,1737571848161,-500.0,0.00020821,2]
[350021296,1737571848170,-500.0,0.00020821,2]
[350021297,1737571848179,-500.0,0.00020821,2]
[350021298,1737571848189,-500.0,0.00020821,2]
[350021299,1737571848199,-500.0,0.00020821,2]
[350021300,1737571848208,-500.0,0.00020821,2]
[350021301,1737571848218,-38481.40500706,0.00020821,2]
[350021302,1737571848227,-6637.96827251,0.00020822,2]
[350021303,1737571848237,-200.0,0.00020822,2]
[350021304,1737571848247,-439.7347157,0.00020824,2]
[350021305,1737571848256,-200.0,0.00020825,2]
[350021306,1737571848266,-200.0,0.00020826,2]
[350021307,1737571848276,-200.0,0.00020827,2]
[350021308,1737571848287,-439.7347157,0.00020827,2]
[350021309,1737571848296,-7139.54736056,0.00020828,2]
[350021310,1737571848306,-298.923958,0.00020828,2]
[350021311,1737571848315,-6637.96827251,0.00020831,2]
[350021312,1737571848326,-409.96275297,0.00020831,2]
[350021313,1737571848336,-200.0,0.00020836,2]
[350021314,1737571848346,-1821.04192883,0.00020837,2]
[350021315,1737571848356,-298.923958,0.00020839,2]
[350021316,1737571848365,-616.54035252,0.0002084,2]
[350021317,1737571848375,-200.0,0.00020841,2]
[350021318,1737571848384,-1821.04192883,0.00020842,2]
[350021319,1737571848394,-7139.54736056,0.00020844,2]
[350021320,1737571848403,-1356.83656007,0.00020845,2]
[350021321,1737571848415,-2538.33696221,0.00020845,2]
[350021322,1737571848428,-339.78331839,0.00020846,2]
[350021323,1737571848437,-1356.83656007,0.00020848,2]
[350021324,1737571848447,-2538.33696221,0.0002085,2]
[350021325,1737571848456,-7139.54736056,0.00020851,2]
[350021326,1737571848466,-1356.83656007,0.00020851,2]
[350021327,1737571848475,-38481.40500706,0.00020852,2]
[350021328,1737571848484,-1356.83656007,0.00020852,2]
[350021329,1737571848493,-616.54035252,0.00020853,2]
[350021330,1737571848503,-344.30495999,0.00020853,2]
[350021331,1737571848513,-2941.41589844,0.00020855,2]
[350021332,1737571848522,-339.78331839,0.00020857,2]
[350021333,1737571848532,-5991.32359784,0.00020859,2]
[350021334,1737571848541,-2538.33696221,0.00020859,2]
[350021335,1737571848551,-38481.40500706,0.0002086,2]
[350021336,1737571848560,-200.0,0.00020863,2]
[350021337,1737571848571,-1915.93083905,0.00020866,2]
[350021338,1737571848580,-344.30495999,0.00020866,2]
[350021339,1737571848589,-409.96275297,0.00020867,2]
[350021340,1737571848599,-439.7347157,0.00020868,2]
[350021341,1737571848608,-3675.12692503,0.00020871,2]
[350021342,1737571848617,-339.78331839,0.00020873,2]
[350021343,1737571848627,-200.0,0.00020873,2]
[350021344,1737571848637,-200.0,0.00020874,2]
[350021345,1737571848648,-3675.12692503,0.00020874,2]
[350021346,1737571848657,-409.96275297,0.00020876,2]
[350021347,1737571848667,-6637.96827251,0.00020879,2]
[350021348,1737571848676,-200.0,0.0002088,2]
[350021349,1737571848686,-585.63365748,0.00020883,2]
[350021350,1737571848696,-200.0,0.00020888,2]
[350021351,1737571848708,-585.63365748,0.00020889,2]
[350021352,1737571848720,-5991.32359784,0.00020889,2]
[350021353,1737571848731,-880.16185793,0.00020891,2]
[350021354,1737571848741,-6637.96827251,0.00020891,2]
[350021355,1737571848750,-3697.76181898,0.00020892,2]
[350021356,1737571848760,-1821.04192883,0.00020898,2]
[350021357,1737571848769,-585.63365748,0.00020901,2]
[350021358,1737571848779,-38481.40500706,0.00020902,2]
[350021359,1737571848788,-5991.32359784,0.00020902,2]
[350021360,1737571848798,-344.30495999,0.00020903,2]
[350021361,1737571848808,-3675.12692503,0.00020903,2]
[350021362,1737571848817,-339.78331839,0.00020903,2]
[350021363,1737571848827,-200.0,0.00020906,2]
[350021364,1737571848836,-3697.76181898,0.00020909,2]
[350021365,1737571848846,-880.16185793,0.00020913,2]